bitfinex/quotes_BTCUSD_20241229
["timestamp","ask_amount","ask_price","bid_price","bid_amount"]
[1735498048306,0.519,93939.0,93937.0,0.02219359]
[1735498048446,0.589,93941.0,93937.0,0.02219359]
[1735498048647,0.589,93941.0,93937.0,0.02019359]
[1735498048977,0.503,93941.0,93937.0,0.02019359]
[1735498049180,0.531,93941.0,93937.0,0.01419359]
[1735498049399,8.53e-05,93939.0,93937.0,0.02219359]
[1735498049599,8.53e-05,93939.0,93938.0,0.23338632]
[1735498049760,8.53e-05,93939.0,93938.0,0.25894431]
[1735498051829,8.53e-05,93939.0,93938.0,0.35894431]
[1735498052031,8.53e-05,93944.0,93943.0,0.1]
[1735498052258,8.53e-05,93944.0,93943.0,0.43338632]
[1735498053368,8.53e-05,93944.0,93943.0,0.44238632]
[1735498053568,8.53e-05,93944.0,93943.0,0.98812847]
[1735498054173,8.53e-05,93944.0,93943.0,0.99412847]
[1735498054825,0.08606486,93960.0,93952.0,0.1294]
[1735498055133,0.08606486,93960.0,93955.0,0.0811]
[1735498055349,0.00011377,93963.0,93962.0,0.1]
[1735498055551,0.00011377,93963.0,93962.0,0.36672495]
[1735498055755,0.00011377,93963.0,93962.0,0.46672495]
[1735498056322,0.09573116,93986.0,93966.0,0.2]
[1735498056524,0.09573116,93986.0,93966.0,0.43338632]
[1735498056941,0.08606486,93990.0,93966.0,0.43338632]
[1735498057619,0.08606486,93980.0,93966.0,0.43338632]
[1735498058474,0.08606486,93980.0,93966.0,0.43738632]
[1735498058672,0.08606486,93980.0,93966.0,0.54137264]
[1735498058872,0.10929454,94012.0,93973.0,0.1811]
[1735498059074,0.10929454,94012.0,93974.0,0.10398632]
[1735498059075,0.17212972,93983.0,93974.0,0.10398632]
[1735498059255,0.08606486,93983.0,93974.0,0.10398632]
[1735498060057,0.08606486,93983.0,93973.0,0.0811]
[1735498060456,0.00015265,93993.0,93974.0,0.11098632]
[1735498060661,8.53e-05,93983.0,93974.0,0.11098632]
[1735498060978,8.53e-05,93983.0,93976.0,0.0483]
[1735498061186,8.53e-05,93983.0,93977.0,0.10398632]
[1735498062524,8.53e-05,93983.0,93978.0,0.0826]
[1735498062736,8.53e-05,93983.0,93979.0,0.12980882]
[1735498062942,8.53e-05,93983.0,93982.0,0.1826]
[1735498063154,8.53e-05,93983.0,93982.0,0.43598632]
[1735498065548,8.53e-05,93983.0,93982.0,0.44898632]
[1735498065987,8.53e-05,94013.0,94004.0,0.1247]
[1735498066203,8.53e-05,94013.0,94011.0,0.0759]
[1735498066407,8.53e-05,94013.0,94012.0,0.20398632]
[1735498066679,8.53e-05,94013.0,94012.0,0.27988632]
[1735498066885,8.53e-05,94013.0,94012.0,0.32868632]
[1735498067072,8.53e-05,94013.0,94012.0,0.42868632]
[1735498067276,8.53e-05,94013.0,94012.0,0.47380195]
[1735498068625,8.53e-05,94013.0,94012.0,0.48280195]
[1735498069050,8.53e-05,94013.0,94012.0,0.47380195]
[1735498069250,8.53e-05,94013.0,94012.0,0.48280195]
[1735498069450,8.53e-05,94013.0,94012.0,0.38280195]
[1735498069783,8.53e-05,94013.0,94012.0,0.48280195]
[1735498070676,8.53e-05,94030.0,94012.0,0.48280195]
[1735498070677,8.53e-05,94030.0,94016.0,0.1]
[1735498070853,0.00059402,94030.0,94017.0,0.15226652]
[1735498072035,0.00059402,94030.0,94018.0,0.0759]
[1735498072248,0.00059402,94030.0,94025.0,0.1]
[1735498072441,0.00059402,94030.0,94026.0,0.10398632]
[1735498073217,0.00059402,94030.0,94029.0,0.20398632]
[1735498073429,0.00059402,94030.0,94029.0,0.42275495]
[1735498074383,8.53e-05,94038.0,94034.0,0.2]
[1735498074536,0.00023785,94035.0,94034.0,0.37988632]
[1735498075329,0.00023785,94035.0,94034.0,0.42868632]
[1735498075532,8.53e-05,94054.0,94048.0,0.3247]
[1735498075737,8.53e-05,94054.0,94048.0,0.42868632]
[1735498078044,8.53e-05,94054.0,94053.0,0.2]
[1735498078361,8.53e-05,94054.0,94053.0,0.20398632]
[1735498079717,8.53e-05,94054.0,94053.0,0.21298632]
[1735498079861,8.53e-05,94054.0,94053.0,0.31138495]
[1735498080069,8.53e-05,94054.0,94053.0,0.31638495]
[1735498080308,8.53e-05,94054.0,94053.0,0.41638495]
[1735498080848,8.53e-05,94054.0,94053.0,0.11798632]
[1735498081053,8.53e-05,94054.0,94053.0,0.014]
[1735498081271,0.01676098,94054.0,94053.0,0.01372533]
[1735498081854,3.41714798,94054.0,94053.0,0.01372533]
[1735498082065,3.41714798,94054.0,94053.0,0.005]
[1735498082245,3.41714798,94054.0,94053.0,0.012]
[1735498082440,3.55769631,94054.0,94023.0,0.00106336]
[1735498082650,0.130885,94034.0,94024.0,0.00015255]
[1735498082848,3.400387,94033.0,94024.0,0.00015255]
[1735498083375,0.01668309,94031.0,94024.0,0.00015255]
[1735498083617,3.400387,94030.0,94024.0,0.00015255]
[1735498084446,0.130885,94034.0,94024.0,0.00015255]
[1735498084654,2.566,94033.0,94024.0,0.00015255]
[1735498084864,2.506,94033.0,94024.0,0.00015255]
[1735498085096,3.022,94033.0,94024.0,0.00015255]
[1735498085333,2.708,94032.0,94024.0,0.00015255]
[1735498085548,2.858,94033.0,94024.0,0.00015255]
[1735498085833,3.400387,94032.0,94024.0,0.00015255]
[1735498086003,3.07,94032.0,94024.0,0.00015255]
[1735498086211,3.242,94033.0,94024.0,0.00215255]
[1735498086628,3.18,94033.0,94024.0,0.00215255]
[1735498086782,3.400387,94033.0,94024.0,0.00215255]
[1735498087003,0.01668371,94031.0,94024.0,0.00215255]
[1735498087221,3.294,94030.0,94024.0,0.00215255]
[1735498087415,3.276,94030.0,94024.0,0.00215255]
[1735498087992,3.207,94030.0,94024.0,0.00215255]
[1735498088141,2.742,94029.0,94024.0,0.00215255]
[1735498088339,0.444,94028.0,94024.0,0.00215255]
[1735498088552,0.162,94030.0,94024.0,0.00215255]
[1735498088764,0.562,94029.0,94024.0,0.00015255]
[1735498088936,0.01668371,94031.0,94024.0,0.00015255]
[1735498089136,0.01668371,94031.0,94024.0,0.00415255]
[1735498089550,0.130885,94040.0,94025.0,0.10398632]
[1735498089746,0.130885,94040.0,94026.0,0.01081389]
[1735498090065,0.130885,94040.0,94027.0,0.10398632]
[1735498090803,0.01668157,94045.0,94028.0,0.1]
[1735498091010,0.130885,94050.0,94029.0,0.10398632]
[1735498092469,8.53e-05,94054.0,94032.0,0.1]
[1735498092620,8.53e-05,94054.0,94042.0,0.10398632]
[1735498093562,8.53e-05,94054.0,94042.0,0.20398632]
[1735498095134,8.53e-05,94054.0,94043.0,0.0479]
[1735498095341,8.53e-05,94054.0,94047.0,0.1]
[1735498095547,8.53e-05,94054.0,94053.0,0.1]
[1735498095755,8.53e-05,94054.0,94053.0,0.24215495]
[1735498096366,8.53e-05,94058.0,94057.0,0.1]
[1735498096625,8.53e-05,94058.0,94057.0,0.20398632]
[1735498097589,0.130885,94070.0,94061.0,0.1]
[1735498097943,0.1310375,94070.0,94062.0,0.10398632]
[1735498098077,0.1310375,94070.0,94063.0,0.02129863]
[1735498098276,0.1310375,94070.0,94064.0,0.10398632]
[1735498098277,0.13094435,94070.0,94064.0,0.10398632]
[1735498100242,0.0001525,94070.0,94064.0,0.10398632]
[1735498100395,0.0001525,94070.0,94065.0,0.10398632]
[1735498102749,0.0001525,94070.0,94065.0,0.11798632]
[1735498103143,0.0001525,94070.0,94065.0,0.12978495]
[1735498106283,0.0001525,94070.0,94065.0,0.11798632]
[1735498108337,0.0002377,94070.0,94065.0,0.11798632]
[1735498112126,0.0002377,94070.0,94065.0,0.10898632]
[1735498112265,0.0002377,94070.0,94065.0,0.005]
[1735498112466,3.400387,94069.0,94065.0,0.014]
[1735498112670,3.400387,94069.0,94057.0,0.0001704]
[1735498112898,0.130885,94067.0,94057.0,0.0001704]
[1735498113069,3.51355492,94066.0,94065.0,0.009]
[1735498113259,3.59005492,94066.0,94065.0,0.005]
[1735498113458,3.60673431,94066.0,94065.0,0.005]
[1735498113715,3.60673431,94066.0,94065.0,0.014]
[1735498114133,3.59005492,94066.0,94065.0,0.009]
[1735498114484,0.1,94064.0,94057.0,0.0001704]
[1735498114660,3.4136397,94063.0,94057.0,0.0001704]
[1735498114873,3.400387,94062.0,94057.0,0.0001704]
[1735498115083,0.01330922,94061.0,94057.0,0.0001704]
[1735498115291,3.400387,94060.0,94057.0,0.0001704]
[1735498115670,0.01336573,94059.0,94057.0,0.0001704]
[1735498115798,3.400387,94058.0,94057.0,0.0001704]
[1735498116021,3.41380925,94058.0,94057.0,0.0001704]
[1735498117061,3.43049002,94058.0,94057.0,0.0051704]
[1735498119424,3.43049002,94058.0,94057.0,0.0061704]
[1735498124189,3.41380925,94058.0,94057.0,0.0061704]
[1735498125552,3.400387,94058.0,94057.0,0.0061704]
[1735498125728,3.157,94058.0,94057.0,0.0061704]
[1735498125967,3.400387,94065.0,94057.0,0.0061704]
[1735498126199,0.01322445,94064.0,94057.0,0.0061704]
[1735498126371,3.400387,94063.0,94057.0,0.0061704]
[1735498126578,3.13170196,94062.0,94057.0,0.0061704]
[1735498126785,3.118421,94061.0,94057.0,0.0061704]
[1735498126993,3.13175848,94060.0,94057.0,0.0001704]
[1735498127328,3.118421,94059.0,94057.0,0.0001704]
[1735498127532,0.01667813,94061.0,94057.0,0.0021704]
[1735498127533,3.13181498,94058.0,94057.0,0.0021704]
[1735498127667,3.13181498,94058.0,94057.0,0.0001704]
[1735498128068,3.13181498,94058.0,94057.0,0.0041704]
[1735498128310,3.4847013,94058.0,94057.0,0.0041704]
[1735498128722,3.5628013,94058.0,94057.0,0.0041704]
[1735498130107,3.75430831,94058.0,94057.0,0.0001704]
[1735498130517,3.75430831,94058.0,94057.0,0.0051704]
[1735498131014,3.75430831,94058.0,94057.0,0.0001704]
[1735498131202,3.75730831,94058.0,94057.0,0.0001704]
[1735498131637,3.36181498,94058.0,94057.0,0.0001704]
[1735498131900,2.47639398,94058.0,94057.0,0.0001704]
[1735498132377,2.47839398,94058.0,94057.0,0.0001704]
[1735498133509,2.47539398,94058.0,94057.0,0.0001704]
[1735498134015,2.47639398,94058.0,94057.0,0.0001704]
[1735498134246,2.47539398,94058.0,94057.0,0.0001704]
[1735498134477,2.47539398,94058.0,94057.0,0.0051704]
[1735498135221,2.47339398,94058.0,94057.0,0.0051704]
[1735498136053,2.47439398,94058.0,94057.0,0.0051704]
[1735498136655,2.47339398,94058.0,94057.0,0.0051704]
[1735498137480,2.49007301,94058.0,94057.0,0.0051704]
[1735498137866,2.47667903,94058.0,94057.0,0.0051704]
[1735498138218,0.19867903,94058.0,94057.0,0.0051704]
[1735498139097,0.21210128,94058.0,94057.0,0.0051704]
[1735498140964,0.39530128,94058.0,94057.0,0.0051704]
[1735498141722,0.39530128,94058.0,94057.0,0.0001704]
[1735498141958,0.21210128,94058.0,94057.0,0.0001704]
[1735498142540,0.21210128,94058.0,94025.0,0.0765]
[1735498142737,0.130885,94035.0,94026.0,0.00765]
[1735498142945,2.244,94034.0,94026.0,0.00765]
[1735498143144,0.130885,94035.0,94026.0,0.00765]
[1735498143343,1.628,94034.0,94026.0,0.00765]
[1735498143552,0.433,94034.0,94026.0,0.00765]
[1735498143748,0.130885,94035.0,94027.0,0.008415]
[1735498144952,0.130885,94035.0,94027.0,0.015415]
[1735498145835,0.130885,94035.0,94027.0,0.007]
[1735498147238,0.01668117,94034.0,94027.0,0.007]
[1735498148240,0.01668117,94034.0,94025.0,0.0765]
[1735498148444,0.016773,94034.0,94025.0,0.0765]
[1735498148661,0.016773,94034.0,94027.0,0.007]
[1735498148822,0.016773,94034.0,94028.0,0.11233632]
[1735498149036,9.183e-05,94034.0,94029.0,0.0794]
[1735498149231,9.183e-05,94034.0,94030.0,0.10398632]
[1735498150255,9.183e-05,94034.0,94029.0,0.0794]
[1735498151863,9.183e-05,94034.0,94029.0,0.0864]
[1735498152109,9.183e-05,94034.0,94030.0,0.002]
[1735498152315,9.183e-05,94034.0,94031.0,0.00884]
[1735498152516,9.183e-05,94034.0,94029.0,0.0864]
[1735498152786,9.183e-05,94034.0,94029.0,0.0884]
[1735498153183,9.183e-05,94034.0,94029.0,0.0864]
[1735498153568,9.183e-05,94034.0,94031.0,0.002]
[1735498154721,9.183e-05,94034.0,94031.0,0.009]
[1735498154899,9.183e-05,94034.0,94031.0,0.007]
[1735498155334,9.183e-05,94034.0,94032.0,0.00864]
[1735498155528,9.183e-05,94034.0,94031.0,0.007]
[1735498156010,9.183e-05,94034.0,94031.0,0.009]
[1735498157285,9.183e-05,94034.0,94031.0,0.002]
[1735498157498,9.183e-05,94034.0,94032.0,0.007]
[1735498157910,9.183e-05,94034.0,94031.0,0.002]
[1735498158197,9.183e-05,94034.0,94031.0,0.01715704]
[1735498158426,9.183e-05,94034.0,94031.0,0.00815704]
[1735498158902,0.01677322,94034.0,94032.0,0.009]
[1735498159131,0.01677322,94034.0,94032.0,0.002]
[1735498159326,0.01677322,94034.0,94031.0,0.00815704]
[1735498159541,0.01677322,94034.0,94032.0,0.00877274]
[1735498160907,0.01677322,94034.0,94032.0,0.01577274]
[1735498161761,0.01677322,94034.0,94032.0,0.01777274]
[1735498163770,0.01677322,94034.0,94032.0,0.009]
[1735498164271,9.183e-05,94034.0,94033.0,0.10398632]
[1735498164448,9.183e-05,94034.0,94033.0,0.22898632]
[1735498165898,5.183e-05,94034.0,94033.0,0.22898632]
[1735498166221,0.130885,94043.0,94034.0,0.0786]
[1735498166356,0.130885,94043.0,94035.0,0.13710199]
[1735498166561,0.130885,94043.0,94035.0,0.21570199]
[1735498166769,0.26177,94050.0,94035.0,0.21570199]
[1735498168726,0.26177,94050.0,94035.0,0.22570199]
[1735498168923,0.26177,94050.0,94035.0,0.19258632]
[1735498169423,3.118421,94049.0,94035.0,0.19258632]
[1735498169783,2.777,94049.0,94035.0,0.19258632]
[1735498169993,1.846,94049.0,94035.0,0.19258632]
[1735498170191,1.303,94049.0,94035.0,0.19258632]
[1735498170397,1.303,94049.0,94035.0,0.20553018]
[1735498170805,1.303,94049.0,94035.0,0.20753018]
[1735498171276,1.303,94049.0,94035.0,0.19953018]
[1735498171486,1.303,94049.0,94035.0,0.20853018]
[1735498171721,1.303,94049.0,94036.0,0.0355271]
[1735498171934,1.303,94049.0,94037.0,0.10398632]
[1735498172368,0.604,94048.0,94037.0,0.10398632]
[1735498172581,0.605,94049.0,94037.0,0.10398632]
[1735498172770,0.405,94049.0,94037.0,0.10398632]
[1735498172922,0.602,94049.0,94037.0,0.10398632]
[1735498173123,0.602,94049.0,94037.0,0.11298632]
[1735498173552,0.573,94049.0,94037.0,0.11298632]
[1735498173757,0.376,94049.0,94037.0,0.11298632]
[1735498173930,0.574,94049.0,94037.0,0.11298632]
[1735498174929,0.574,94049.0,94038.0,0.02381567]
[1735498175108,0.574,94049.0,94038.0,0.12780199]
[1735498176295,0.574,94049.0,94038.0,0.13680199]
[1735498176931,0.574,94049.0,94038.0,0.13880199]
[1735498178499,0.574,94049.0,94038.0,0.11498632]
[1735498178702,0.425,94048.0,94038.0,0.11498632]
[1735498178905,0.426,94049.0,94038.0,0.11498632]
[1735498179108,0.438,94049.0,94038.0,0.11498632]
[1735498179357,0.414,94049.0,94038.0,0.11498632]
[1735498179542,0.41,94048.0,94039.0,0.02399863]
[1735498179787,0.411,94049.0,94039.0,0.02399863]
[1735498180185,0.26177,94050.0,94039.0,0.02399863]
[1735498180430,0.130885,94050.0,94039.0,0.02399863]
[1735498180628,0.130885,94050.0,94040.0,0.02334993]
[1735498181574,0.26177,94050.0,94040.0,0.02334993]
[1735498181986,0.26177,94050.0,94040.0,0.03134993]
[1735498183074,0.26177,94050.0,94040.0,0.008]
[1735498183784,0.2201915,94050.0,94040.0,0.01]
[1735498185995,0.130885,94050.0,94040.0,0.01]
[1735498186542,0.26177,94050.0,94040.0,0.01]
[1735498186813,2.407,94049.0,94040.0,0.01]
[1735498187632,2.407,94049.0,94040.0,0.008]
[1735498188040,2.407,94049.0,94035.0,0.0787704]
[1735498188488,2.407,94049.0,94040.0,0.009]
[1735498188687,0.01668092,94046.0,94040.0,0.009]
[1735498188888,3.118421,94045.0,94040.0,0.009]
[1735498189529,3.118421,94045.0,94040.0,0.002]
[1735498189885,3.118421,94045.0,94040.0,0.007]
[1735498190087,3.118421,94045.0,94035.0,0.0001704]
[1735498190286,3.118421,94045.0,94040.0,0.001]
[1735498190903,3.118421,94045.0,94035.0,0.0001704]
[1735498191163,3.118421,94045.0,94040.0,0.001]
[1735498191947,1.633,94044.0,94040.0,0.008]
[1735498192159,2.371,94045.0,94040.0,0.001]
[1735498192362,2.371,94045.0,94035.0,0.0001704]
[1735498192666,2.371,94045.0,94040.0,0.01]
[1735498192885,1.409,94044.0,94040.0,0.002]
[1735498193054,1.921,94045.0,94040.0,0.002]
[1735498193265,1.747,94045.0,94040.0,0.009]
[1735498193464,2.299,94045.0,94035.0,0.0021704]
[1735498194235,0.09579518,94047.0,94035.0,0.0091704]
[1735498194470,3.118421,94046.0,94035.0,0.0091704]
[1735498195100,3.118421,94046.0,94040.0,0.0001704]
[1735498196094,3.118421,94046.0,94040.0,0.0021704]
[1735498196848,3.118421,94046.0,94040.0,0.0081704]
[1735498197265,3.118421,94046.0,94040.0,0.0101704]
[1735498198723,0.01668127,94045.0,94040.0,0.0101704]
[1735498198918,3.118421,94044.0,94040.0,0.0101704]
[1735498199536,3.118421,94044.0,94040.0,0.0021704]
[1735498200027,2.157,94043.0,94040.0,0.0081704]
[1735498200227,2.734,94044.0,94040.0,0.0021704]
[1735498200379,2.734,94044.0,94040.0,0.0111704]
[1735498200969,0.01668127,94045.0,94040.0,0.0091704]
[1735498200970,2.093,94043.0,94040.0,0.0091704]
[1735498201174,2.721,94044.0,94040.0,0.0091704]
[1735498201752,1.556,94043.0,94040.0,0.0091704]
[1735498201964,2.217,94044.0,94040.0,0.0001704]
[1735498202170,2.232,94044.0,94040.0,0.0001704]
[1735498202397,2.232,94044.0,94040.0,0.0091704]
[1735498202962,2.232,94044.0,94040.0,0.0001704]
[1735498203382,2.232,94044.0,94040.0,0.0091704]
[1735498203657,1.824,94044.0,94040.0,0.0111704]
[1735498203892,1.054,94043.0,94040.0,0.0111704]
[1735498204091,1.766,94044.0,94040.0,0.0111704]
[1735498204259,0.09579518,94048.0,94041.0,0.0756]
[1735498204483,0.09579518,94048.0,94043.0,0.0469]
[1735498205168,1.189,94047.0,94041.0,0.0756]
[1735498205571,3.118421,94049.0,94041.0,0.0756]
[1735498205981,3.118421,94049.0,94041.0,0.0826]
[1735498206369,3.118421,94049.0,94041.0,0.0756]
[1735498206568,0.09579518,94047.0,94041.0,0.09039408]
[1735498206897,2.189,94046.0,94041.0,0.08339408]
[1735498207103,0.905,94045.0,94041.0,0.08339408]
[1735498207295,0.435,94044.0,94041.0,0.09039408]
[1735498207522,0.01668008,94045.0,94041.0,0.09039408]
[1735498207726,0.01668008,94045.0,94042.0,0.00927349]
[1735498209087,8.52e-05,94050.0,94043.0,0.17958632]
[1735498209301,8.52e-05,94050.0,94044.0,0.0756]
[1735498209513,8.52e-05,94050.0,94044.0,0.17958632]
[1735498210882,8.52e-05,94050.0,94044.0,0.18758632]
[1735498211081,8.52e-05,94050.0,94044.0,0.22287934]
[1735498212417,8.52e-05,94050.0,94044.0,0.22487934]
[1735498214560,8.52e-05,94050.0,94045.0,0.10398632]
[1735498214734,8.52e-05,94050.0,94046.0,0.0822]
[1735498214938,8.52e-05,94050.0,94048.0,0.0822]
[1735498215139,8.52e-05,94050.0,94049.0,0.1280616]
[1735498215340,8.52e-05,94050.0,94049.0,0.2102616]
[1735498215545,8.52e-05,94050.0,94049.0,0.2556616]
[1735498217418,8.52e-05,94050.0,94049.0,0.2646616]
[1735498219108,8.52e-05,94050.0,94049.0,0.2716616]
[1735498221272,8.52e-05,94050.0,94049.0,0.3716616]
[1735498221472,8.52e-05,94050.0,94049.0,0.4716616]
[1735498226429,8.52e-05,94058.0,94055.0,0.1]
[1735498226576,8.52e-05,94058.0,94055.0,0.36979248]
[1735498227225,0.130885,94070.0,94069.0,0.1]
[1735498227432,0.130885,94079.0,94069.0,0.28668632]
[1735498227648,0.130885,94079.0,94070.0,0.10398632]
[1735498227838,0.130885,94079.0,94071.0,0.02866863]
[1735498228042,0.130885,94079.0,94072.0,0.10398632]
[1735498230054,0.130885,94079.0,94072.0,0.10698632]
[1735498230505,0.130885,94079.0,94072.0,0.10398632]
[1735498231138,0.1309703,94079.0,94072.0,0.10398632]
[1735498231344,0.1309703,94079.0,94072.0,0.13358412]
[1735498231905,0.00597843,94078.0,94072.0,0.13858412]
[1735498232408,0.1309703,94079.0,94072.0,0.13858412]
[1735498232867,0.1309703,94079.0,94072.0,0.13358412]
[1735498233107,0.1309703,94079.0,94072.0,0.13858412]
[1735498233308,0.1309703,94079.0,94073.0,0.08082841]
[1735498233492,0.1309703,94079.0,94074.0,0.18668632]
[1735498235704,0.1309703,94079.0,94074.0,0.20168632]
[1735498236744,8.53e-05,94079.0,94074.0,0.20168632]
[1735498237398,0.00675704,94078.0,94074.0,0.20168632]
[1735498237603,0.00675704,94078.0,94075.0,0.03825147]
[1735498237815,0.00675704,94078.0,94076.0,0.10398632]
[1735498239356,2.239,94077.0,94074.0,0.006]
[1735498239556,0.0777,94076.0,94074.0,0.006]
[1735498239777,2.93191,94075.0,94074.0,0.006]
[1735498240032,2.93191,94075.0,94055.0,0.0827]
[1735498240206,0.26177,94065.0,94046.0,0.0828706]
[1735498240411,0.26177,94056.0,94047.0,0.10398632]
[1735498240565,0.130885,94056.0,94047.0,0.10398632]
[1735498240761,0.00711635,94055.0,94047.0,0.10398632]
[1735498240990,0.01667689,94054.0,94047.0,0.10398632]
[1735498241345,0.00707637,94053.0,94047.0,0.10398632]
[1735498242007,0.00707637,94053.0,94047.0,0.11298632]
[1735498242220,0.00707637,94053.0,94047.0,0.10398632]
[1735498242440,0.00707637,94053.0,94046.0,0.0001706]
[1735498242590,0.00707637,94053.0,94047.0,0.013]
[1735498242591,2.88211,94052.0,94047.0,0.013]
[1735498242993,0.00707068,94051.0,94046.0,0.0001706]
[1735498243192,2.88211,94050.0,94046.0,0.0001706]
[1735498243473,0.0778,94048.0,94047.0,0.004]
[1735498243658,2.97389748,94048.0,94047.0,0.00073736]
[1735498243996,3.08494607,94048.0,94046.0,0.0001706]
[1735498244199,2.89612575,94047.0,94046.0,0.00026245]
[1735498244750,2.90318802,94047.0,94046.0,0.00026245]
[1735498245372,2.90318802,94047.0,94046.0,0.00226245]
[1735498245545,3.00318802,94047.0,94046.0,0.00226245]
[1735498246184,3.00318802,94047.0,94046.0,0.00026245]
[1735498246567,3.00618802,94047.0,94046.0,0.00026245]
[1735498246911,3.00418802,94047.0,94046.0,0.00026245]
[1735498247330,3.11317434,94047.0,94046.0,0.00026245]
[1735498247675,3.10817434,94047.0,94046.0,0.00026245]
[1735498247987,3.11117434,94047.0,94046.0,0.00026245]
[1735498248191,3.11517434,94047.0,94046.0,0.00026245]
[1735498248585,3.12785715,94047.0,94046.0,0.00026245]
[1735498249024,3.13085715,94047.0,94046.0,0.00026245]
[1735498249651,0.2,94036.0,94035.0,0.0001704]
[1735498249868,0.23466593,94036.0,94035.0,0.0001704]
[1735498250057,0.24156653,94036.0,94035.0,0.0001704]
[1735498250492,0.25825319,94036.0,94035.0,0.0001704]
[1735498250665,0.33605319,94036.0,94035.0,0.0001704]
[1735498250894,0.26177,94003.0,93975.0,0.0799]
[1735498251023,2.90570937,94002.0,93993.0,0.00067932]
[1735498251225,2.88211,94001.0,93993.0,0.00067932]
[1735498251632,0.0235015,94000.0,93993.0,0.00067932]
[1735498251855,2.88211,93999.0,93993.0,0.00067932]
[1735498252060,2.99898205,93999.0,93993.0,0.00067932]
[1735498252260,2.88891609,93998.0,93993.0,0.00067932]
[1735498252586,2.89903865,93997.0,93993.0,0.00067932]
[1735498252787,2.88211,93996.0,93993.0,0.00067932]
[1735498252996,0.01698524,93995.0,93993.0,0.00067932]
[1735498253124,2.88211,93994.0,93993.0,0.00067932]
[1735498253509,0.38580589,93994.0,93993.0,0.00667932]
[1735498253739,0.00680589,93994.0,93993.0,0.01533725]
[1735498253911,0.00680589,93994.0,93993.0,0.00667932]
[1735498254118,0.26177,94003.0,93993.0,0.00667932]
[1735498254316,1.224,94002.0,93993.0,0.00667932]
[1735498254471,1.043,94001.0,93993.0,0.00967932]
[1735498254666,1.043,94001.0,93993.0,0.00367932]
[1735498254909,0.00630894,94000.0,93993.0,0.00067932]
[1735498255186,0.001,93997.0,93993.0,0.00767932]
[1735498255365,2.89906694,93996.0,93993.0,0.00767932]
[1735498255543,2.88211,93995.0,93993.0,0.00067932]
[1735498255750,0.01701354,93994.0,93993.0,0.00067932]
[1735498255947,2.89912354,93994.0,93993.0,0.00767932]
[1735498256158,3.00946959,93994.0,93993.0,0.00067932]
[1735498256362,3.00946959,93994.0,93993.0,0.00167932]
[1735498256563,3.026159,93994.0,93993.0,0.00867932]
[1735498256924,3.026159,93994.0,93993.0,0.00767932]
[1735498257349,3.028159,93994.0,93993.0,0.00767932]
[1735498257548,3.205859,93994.0,93993.0,0.00767932]
[1735498258102,3.203859,93994.0,93993.0,0.00067932]
[1735498258322,3.204859,93994.0,93993.0,0.00067932]
[1735498258759,3.203859,93994.0,93993.0,0.00067932]
[1735498259112,3.317359,93994.0,93993.0,0.00067932]
[1735498259290,3.10087268,93994.0,93993.0,0.00067932]
[1735498259491,3.09987268,93994.0,93993.0,0.00067932]
[1735498260129,2.90515914,93994.0,93993.0,0.00067932]
[1735498260299,0.91504914,93994.0,93993.0,0.00067932]
[1735498260502,0.69304914,93994.0,93993.0,0.00067932]
[1735498260904,0.69104914,93994.0,93993.0,0.00067932]
[1735498261115,0.69204914,93994.0,93993.0,0.00067932]
[1735498261945,0.69104914,93994.0,93993.0,0.00067932]
[1735498262801,0.69104914,93994.0,93993.0,0.00167932]
[1735498262948,0.69004914,93994.0,93993.0,0.00167932]
[1735498263163,0.69004914,93994.0,93993.0,0.00267932]
[1735498263430,0.69004914,93994.0,93993.0,0.01167932]
[1735498263771,0.69004914,93994.0,93993.0,0.00967932]
[1735498264146,0.67335973,93994.0,93993.0,0.01367932]
[1735498266960,0.47968322,93994.0,93993.0,0.01367932]
[1735498268728,0.4963717,93994.0,93993.0,0.01367932]
[1735498270510,0.02301197,93994.0,93993.0,0.01367932]
[1735498274005,0.00632349,93994.0,93993.0,0.01367932]
[1735498274444,0.26177,94003.0,93993.0,0.01367932]
[1735498274648,0.00526354,93994.0,93993.0,0.01367932]
[1735498274845,0.130885,94003.0,93993.0,0.01367932]
[1735498275073,0.00526354,93994.0,93993.0,0.01367932]
[1735498275265,0.130885,94003.0,93993.0,0.01367932]
[1735498275437,0.00526354,93994.0,93993.0,0.01367932]
[1735498275620,0.130885,94003.0,93993.0,0.00967932]
[1735498275817,0.00526354,93994.0,93993.0,0.00067932]
[1735498276150,0.00526354,93994.0,93993.0,0.00767932]
[1735498276375,0.130885,94003.0,93993.0,0.00767932]
[1735498276572,2.68847,94002.0,93993.0,0.00767932]
[1735498276750,2.69373354,94002.0,93993.0,0.00767932]
[1735498276954,2.68847,94001.0,93993.0,0.00767932]
[1735498277226,2.68847,94001.0,93993.0,0.00067932]
[1735498277480,0.02198719,94000.0,93993.0,0.00067932]
[1735498277645,2.68847,93999.0,93993.0,0.00067932]
[1735498277853,0.02198719,94000.0,93995.0,0.0481]
[1735498278055,0.00529847,93998.0,93997.0,0.0763]
[1735498278236,0.01668814,94000.0,93997.0,0.18028632]
[1735498278456,0.01668814,94000.0,93997.0,0.0763]
[1735498279682,0.01668814,94000.0,93997.0,0.0813]
[1735498280100,0.01677354,94000.0,93997.0,0.0813]
[1735498280303,0.01677354,94000.0,93997.0,0.0853]
[1735498283103,0.01677354,94000.0,93997.0,0.0913]
[1735498284066,8.54e-05,94000.0,93997.0,0.0913]
[1735498285264,2.68847,93999.0,93997.0,0.015]
[1735498285808,2.70525717,93999.0,93997.0,0.015]
[1735498286015,2.85824349,93998.0,93997.0,0.015]
[1735498287085,2.75425717,93998.0,93993.0,0.00067932]
[1735498287323,2.68847,93997.0,93993.0,0.00067932]
[1735498287477,0.01695694,93996.0,93993.0,0.00067932]
[1735498287713,2.68847,93995.0,93993.0,0.00067932]
[1735498288083,2.235,93994.0,93993.0,0.00067932]
[1735498288474,0.627,93994.0,93993.0,0.00067932]
[1735498288655,0.01668956,93998.0,93993.0,0.00067932]
[1735498288892,0.01668956,93998.0,93994.0,0.0815]
[1735498289304,0.001,93996.0,93994.0,0.0815]
[1735498289513,0.001,93996.0,93994.0,0.08991793]
[1735498289713,0.001,93996.0,93995.0,0.10398632]
[1735498289850,0.001,93996.0,93995.0,0.23378632]
[1735498291507,0.01668956,93998.0,93995.0,0.15228632]
[1735498291753,0.01668956,93998.0,93996.0,0.0815]
[1735498291929,0.01668956,93998.0,93997.0,0.18548632]
[1735498292490,0.01668956,93998.0,93997.0,0.18448632]